bitfinex/quotes_BTCUSD_20240823
["timestamp","ask_amount","ask_price","bid_price","bid_amount"]
[1724395157950,0.000823,61009.0,61008.0,2.65523014]
[1724395158408,0.000823,61009.0,61008.0,2.33502727]
[1724395158606,0.000823,61009.0,61008.0,2.32102727]
[1724395158808,1.577e-05,61012.0,61011.0,1.29463463]
[1724395159018,1.577e-05,61012.0,61011.0,1.95618756]
[1724395159252,1.577e-05,61012.0,61011.0,2.2924925]
[1724395159454,0.02572385,61012.0,61011.0,2.2924925]
[1724395159867,0.02572385,61012.0,61011.0,2.27458211]
[1724395160066,0.02572385,61012.0,61011.0,2.3064853]
[1724395160281,0.02572385,61012.0,61011.0,2.3064848]
[1724395160481,0.02572385,61012.0,61011.0,2.3204848]
[1724395160820,0.02572385,61012.0,61011.0,2.32048335]
[1724395161024,0.02572385,61012.0,61011.0,1.84593039]
[1724395161220,0.02572385,61012.0,61011.0,1.41792139]
[1724395161431,0.16562385,61012.0,61011.0,0.69644624]
[1724395161658,0.16562385,61012.0,61011.0,0.80566272]
[1724395162002,0.16562385,61012.0,61011.0,0.38641525]
[1724395162315,0.16562385,61012.0,61011.0,0.71422425]
[1724395162721,0.16562385,61012.0,61011.0,0.73722425]
[1724395163135,0.16562385,61012.0,61011.0,0.71931555]
[1724395163334,0.16562385,61012.0,61011.0,0.73722499]
[1724395164340,0.16562385,61012.0,61011.0,0.81076663]
[1724395164817,0.16562385,61012.0,61011.0,0.81076887]
[1724395165380,0.16562385,61012.0,61011.0,0.15305289]
[1724395165589,0.16562385,61012.0,61011.0,0.05450901]
[1724395165921,0.16562385,61012.0,61011.0,0.05650901]
[1724395166539,0.16562385,61012.0,61011.0,0.04040538]
[1724395166744,0.16562385,61012.0,61011.0,0.06340538]
[1724395166953,0.16562385,61012.0,61011.0,0.07340538]
[1724395167152,0.16562385,61012.0,61011.0,0.05940538]
[1724395167582,0.16562385,61012.0,61011.0,0.07240538]
[1724395168326,0.16562385,61012.0,61011.0,0.07250901]
[1724395168543,0.16562385,61012.0,61011.0,0.07450901]
[1724395170269,0.16562385,61012.0,61011.0,0.05659957]
[1724395170471,0.16562385,61012.0,61011.0,0.07451475]
[1724395173906,0.16562385,61012.0,61011.0,0.07451476]
[1724395176115,0.16562385,61012.0,61011.0,0.14019876]
[1724395177049,0.16562385,61012.0,61011.0,0.12228357]
[1724395177262,0.16562385,61012.0,61011.0,0.14019382]
[1724395178036,0.13991577,61012.0,61011.0,0.14019382]
[1724395179278,1.577e-05,61012.0,61011.0,1.20646276]
[1724395179474,1.577e-05,61012.0,61011.0,1.12807888]
[1724395180422,1.577e-05,61012.0,61011.0,1.11016863]
[1724395180844,1.577e-05,61012.0,61011.0,1.1280762]
[1724395182498,0.02572671,61012.0,61011.0,1.1280762]
[1724395186584,0.02572671,61012.0,61011.0,1.2097762]
[1724395186785,0.02572671,61012.0,61011.0,1.33954337]
[1724395187431,0.02572671,61012.0,61011.0,1.66735237]
[1724395189988,0.02572671,61012.0,61011.0,2.06774379]
[1724395190395,0.02572671,61012.0,61011.0,1.99420897]
[1724395190863,0.02572671,61012.0,61011.0,1.99420721]
[1724395191248,0.02572671,61012.0,61011.0,1.96401807]
[1724395191374,0.02572671,61012.0,61011.0,1.99110333]
[1724395192391,0.02572671,61012.0,61011.0,1.99420696]
[1724395193055,0.02572671,61012.0,61011.0,1.99110333]
[1724395193498,0.02572671,61012.0,61011.0,1.66639796]
[1724395194255,0.02572671,61012.0,61011.0,1.57337024]
[1724395194439,0.02572671,61012.0,61011.0,1.58565285]
[1724395194635,0.02572671,61012.0,61011.0,1.50395285]
[1724395194838,0.02572671,61012.0,61011.0,0.47245576]
[1724395194839,0.08582671,61012.0,61011.0,0.47245576]
[1724395195247,0.08582671,61012.0,61011.0,0.47045576]
[1724395195627,0.08582671,61012.0,61011.0,0.28355176]
[1724395195829,0.06011577,61012.0,61011.0,0.28355176]
[1724395196884,0.06011577,61012.0,61011.0,0.30655176]
[1724395197597,0.06011577,61012.0,61011.0,0.28864663]
[1724395197750,0.06011577,61012.0,61011.0,0.30655446]
[1724395197954,0.06011577,61012.0,61011.0,0.47045846]
[1724395201894,0.06011577,61012.0,61011.0,0.79826746]
[1724395202436,0.06011577,61012.0,61011.0,1.12707646]
[1724395202564,1.577e-05,61012.0,61011.0,1.20882042]
[1724395203163,1.577e-05,61012.0,61011.0,1.19091259]
[1724395203364,1.577e-05,61012.0,61011.0,1.20881312]
[1724395203815,1.577e-05,61012.0,61011.0,1.25783537]
[1724395204019,1.577e-05,61012.0,61011.0,1.33691661]
[1724395204224,1.577e-05,61012.0,61011.0,1.28791312]
[1724395204451,1.577e-05,61012.0,61011.0,1.72502857]
[1724395205349,1.577e-05,61012.0,61011.0,1.65151333]
[1724395205571,1.577e-05,61012.0,61011.0,1.74955783]
[1724395205773,0.0257259,61012.0,61011.0,1.74955783]
[1724395205976,0.0257259,61012.0,61011.0,1.65151333]
[1724395206478,0.0257259,61012.0,61011.0,2.07736683]
[1724395206692,0.0257259,61012.0,61011.0,2.08397743]
[1724395206856,0.0257259,61012.0,61011.0,2.10188155]
[1724395207060,0.0257259,61012.0,61011.0,2.10188149]
[1724395207262,0.0257259,61012.0,61011.0,2.16288149]
[1724395207468,0.0257259,61012.0,61011.0,2.04032586]
[1724395208442,0.0257259,61012.0,61011.0,2.36813486]
[1724395208645,1e-08,61012.0,61011.0,2.36813486]
[1724395208850,0.000823,61013.0,61012.0,1.22901763]
[1724395209052,0.000823,61013.0,61012.0,1.79752488]
[1724395209250,0.000823,61013.0,61012.0,1.94456439]
[1724395209453,0.000823,61013.0,61012.0,1.80722355]
[1724395210271,0.000823,61013.0,61012.0,1.80331949]
[1724395210478,0.000823,61013.0,61012.0,1.82121629]
[1724395210684,0.000823,61013.0,61012.0,1.82121623]
[1724395210894,0.000823,61013.0,61012.0,1.88521623]
[1724395211099,0.000823,61013.0,61012.0,1.89921623]
[1724395211502,0.000823,61013.0,61012.0,2.22702023]
[1724395213238,0.0265307,61013.0,61012.0,2.22702023]
[1724395213895,0.0265307,61013.0,61012.0,2.20912349]
[1724395214100,0.0265307,61013.0,61012.0,2.22702589]
[1724395217002,0.0265307,61013.0,61012.0,1.83522189]
[1724395217472,0.0265307,61013.0,61012.0,1.79432432]
[1724395217682,0.0265307,61013.0,61012.0,1.89296951]
[1724395218110,0.0265307,61013.0,61012.0,2.01547587]
[1724395218469,0.0265307,61013.0,61012.0,1.89296951]
[1724395218865,0.0265307,61013.0,61012.0,1.91596951]
[1724395220017,0.0265307,61013.0,61012.0,1.97966951]
[1724395221064,0.0265307,61013.0,61012.0,1.96176828]
[1724395221275,0.0265307,61013.0,61012.0,1.97966947]
[1724395223734,0.000823,61017.0,61016.0,1.31168459]
[1724395223934,0.000823,61017.0,61016.0,1.96023029]
[1724395224079,0.000823,61017.0,61016.0,1.96996456]
[1724395224900,0.000823,61017.0,61016.0,1.51942184]
[1724395225109,0.000823,61017.0,61016.0,1.98096402]
[1724395225468,0.000823,61017.0,61016.0,1.99496402]
[1724395227007,0.02652995,61017.0,61016.0,1.99496402]
[1724395228466,0.02652995,61017.0,61016.0,1.99495714]
[1724395231483,0.02652995,61017.0,61016.0,2.01285858]
[1724395233702,0.02652995,61017.0,61016.0,2.03735592]
[1724395236721,0.02652995,61017.0,61016.0,2.03735548]
[1724395239731,0.02652995,61017.0,61016.0,2.03677348]
[1724395242160,0.02652995,61017.0,61016.0,1.9142868]
[1724395242570,0.02652995,61017.0,61016.0,2.2420688]
[1724395243016,0.02652995,61017.0,61016.0,2.24204425]
[1724395243160,0.0625,61022.0,61021.0,1.23141159]
[1724395243369,0.0625,61022.0,61021.0,1.89783148]
[1724395243591,0.0625,61022.0,61021.0,1.90806374]
[1724395243996,0.063323,61024.0,61022.0,1.15064663]
[1724395244196,0.063323,61024.0,61022.0,1.71907202]
[1724395244370,0.063323,61024.0,61022.0,1.72930367]
[1724395245175,0.063323,61024.0,61022.0,1.73730367]
[1724395245376,0.063323,61024.0,61022.0,1.83529817]
[1724395246342,0.063323,61024.0,61022.0,1.84029817]
[1724395246918,0.063323,61024.0,61022.0,1.84029068]
[1724395247139,0.000823,61024.0,61022.0,1.74229618]
[1724395247335,0.000823,61024.0,61022.0,1.94038931]
[1724395247652,0.02652893,61023.0,61022.0,1.81789618]
[1724395249668,0.02652893,61023.0,61022.0,1.81789473]
[1724395250744,0.02652893,61023.0,61022.0,1.81289473]
[1724395251181,0.02652893,61023.0,61022.0,1.80489473]
[1724395251327,0.02652893,61023.0,61022.0,1.81889473]
[1724395251530,0.02652893,61023.0,61022.0,2.14664473]
[1724395251693,0.02652893,61023.0,61022.0,2.20854473]
[1724395252099,0.02652893,61023.0,61022.0,2.35553805]
[1724395252563,0.02652893,61023.0,61022.0,2.35555462]
[1724395252761,0.02652893,61023.0,61022.0,2.36955462]
[1724395253230,0.02652893,61023.0,61022.0,2.22254473]
[1724395254008,0.000823,61024.0,61023.0,0.00352163]
[1724395254240,0.000823,61024.0,61023.0,2.1250665]
[1724395254446,0.000823,61024.0,61023.0,2.13528961]
[1724395255050,0.000823,61024.0,61023.0,2.14756011]
[1724395255630,0.000823,61024.0,61023.0,2.16156011]
[1724395256083,0.000823,61024.0,61023.0,2.17556011]
[1724395256883,0.000823,61024.0,61023.0,2.17555634]
[1724395257403,0.000823,61024.0,61023.0,2.17551147]
[1724395257404,0.0265278,61024.0,61023.0,2.17551147]
[1724395257599,0.0265278,61024.0,61023.0,2.25625543]
[1724395259779,0.0265278,61024.0,61023.0,2.22609664]
[1724395259983,0.0265278,61024.0,61023.0,2.25625557]
[1724395261761,0.000823,61031.0,61030.0,1.23123959]
[1724395261934,0.000823,61031.0,61030.0,1.79960748]
[1724395262135,0.000823,61031.0,61030.0,1.82209685]
[1724395262537,0.000823,61031.0,61030.0,1.94449975]
[1724395262943,0.000823,61031.0,61030.0,1.95649975]
[1724395263215,0.000823,61031.0,61030.0,1.84809685]
[1724395263772,0.000823,61031.0,61030.0,1.93129685]
[1724395263991,0.000823,61031.0,61030.0,1.97049975]
[1724395265263,0.000823,61031.0,61030.0,1.84809685]
[1724395265468,0.000823,61031.0,61030.0,1.84806301]
[1724395265663,0.02652741,61031.0,61030.0,1.83017464]
[1724395265905,0.02652741,61031.0,61030.0,1.83017283]
[1724395266113,0.02652741,61031.0,61030.0,1.87942708]
[1724395266315,0.02652741,61031.0,61030.0,1.89731276]
[1724395266509,0.02652741,61031.0,61030.0,1.90958131]
[1724395268436,0.02652741,61031.0,61030.0,2.00742826]
[1724395268802,0.02652741,61031.0,61030.0,1.90958131]
[1724395269308,0.02652741,61031.0,61030.0,2.00742203]
[1724395269446,0.02652741,61031.0,61030.0,1.90958121]
[1724395269866,0.02652741,61031.0,61030.0,2.23728821]
[1724395270263,0.02652741,61031.0,61030.0,2.33512748]
[1724395271015,0.02652741,61031.0,61030.0,2.40422748]
[1724395271222,0.02652741,61031.0,61030.0,2.40622748]
[1724395271626,0.02652741,61031.0,61030.0,2.42022748]
[1724395271825,0.02652741,61031.0,61030.0,2.44472012]
[1724395273833,0.02652741,61031.0,61030.0,2.03391312]
[1724395274204,0.02652741,61031.0,61030.0,1.91158121]
[1724395274430,0.09272741,61031.0,61030.0,1.91158121]
[1724395274651,0.09272741,61031.0,61030.0,2.03391312]
[1724395275348,0.09272741,61031.0,61030.0,1.91158121]
[1724395275683,0.09272741,61031.0,61030.0,2.03391312]
[1724395275888,0.09272741,61031.0,61030.0,2.0339133]
[1724395276245,0.09272741,61031.0,61030.0,1.91158139]
[1724395276447,0.09272741,61031.0,61030.0,2.0339133]
[1724395278961,0.02652741,61031.0,61030.0,2.0339133]
[1724395279168,0.17132741,61031.0,61030.0,1.8185688]
[1724395279382,0.17132741,61031.0,61030.0,1.91158264]
[1724395279585,0.17132741,61031.0,61030.0,1.9849705]
[1724395279808,0.17132741,61031.0,61030.0,1.98498657]
[1724395280348,0.17132741,61031.0,61030.0,1.91159809]
[1724395282381,0.17132741,61031.0,61030.0,1.89932821]
[1724395282536,0.17132741,61031.0,61030.0,2.00945232]
[1724395282957,0.09172741,61031.0,61030.0,2.00945232]
[1724395284686,0.09172741,61031.0,61030.0,2.00949669]
[1724395285084,0.09172741,61031.0,61030.0,1.91160108]
[1724395285457,0.09172741,61031.0,61030.0,1.83085712]
[1724395285661,0.09172741,61031.0,61030.0,1.88144259]
[1724395285898,0.09172741,61031.0,61030.0,1.89371448]
[1724395286106,0.09172741,61031.0,61030.0,1.91160322]
[1724395287670,0.09172741,61031.0,61030.0,1.98850322]
[1724395288495,0.02652741,61031.0,61030.0,1.98850322]
[1724395289463,0.02652741,61031.0,61030.0,1.97450322]
[1724395290364,0.02652741,61031.0,61030.0,1.9941367]
[1724395290564,0.000823,61031.0,61030.0,1.9801367]
[1724395290770,0.000823,61031.0,61030.0,1.9941367]
[1724395290771,0.0265254,61031.0,61030.0,1.9941367]
[1724395291000,0.0265254,61031.0,61030.0,2.0081367]
[1724395291275,0.0265254,61031.0,61030.0,1.9941367]
[1724395291829,0.0265254,61031.0,61030.0,2.0081367]
[1724395294278,0.0265254,61031.0,61030.0,2.00812125]
[1724395294499,0.0265254,61031.0,61030.0,2.15513848]
[1724395295464,0.0265254,61031.0,61030.0,1.99023008]
[1724395295659,0.0265254,61031.0,61030.0,2.00811844]
[1724395296252,0.0265254,61031.0,61030.0,2.15516629]
[1724395296369,0.0265254,61031.0,61030.0,2.00811844]
[1724395298355,0.0265254,61031.0,61030.0,1.99023008]
[1724395298556,0.0265254,61031.0,61030.0,2.00811848]
[1724395298936,0.0265254,61031.0,61030.0,1.9583222]
[1724395299343,0.0265254,61031.0,61030.0,2.00811361]
[1724395300994,0.0265254,61031.0,61030.0,2.33582061]
[1724395301208,0.0265254,61031.0,61030.0,2.00811361]
[1724395302046,0.000823,61032.0,61031.0,1.15047863]
[1724395302255,0.000823,61032.0,61031.0,1.92844294]
[1724395302463,0.000823,61032.0,61031.0,1.98999151]
[1724395302813,0.000823,61032.0,61031.0,2.17057]
[1724395303482,0.000823,61032.0,61031.0,2.23557]
[1724395304059,0.000823,61032.0,61031.0,2.24957]
[1724395304260,0.000823,61032.0,61031.0,2.26357]
[1724395305378,0.02652319,61032.0,61031.0,2.26357]
[1724395305776,0.02652319,61032.0,61031.0,2.18068]
[1724395305979,0.02652319,61032.0,61031.0,2.19856501]
[1724395308096,0.02652319,61032.0,61031.0,2.24139512]
[1724395309866,0.02652319,61032.0,61031.0,2.32213908]
[1724395312266,0.01054493,61032.0,61031.0,2.32213908]
[1724395313455,0.01054493,61032.0,61031.0,2.42213908]
[1724395314185,0.01054493,61032.0,61031.0,2.34139512]
[1724395314636,0.01054493,61032.0,61031.0,2.42213908]
[1724395315579,0.01054493,61032.0,61031.0,2.42213964]
[1724395316298,0.01054493,61032.0,61031.0,2.42304494]
[1724395316459,0.01136793,61032.0,61031.0,2.42304494]
[1724395317076,0.0637,61033.0,61032.0,1.47815363]
[1724395317281,0.0637,61033.0,61032.0,2.17838583]
[1724395317619,0.0637,61033.0,61032.0,2.190116]
[1724395318407,0.0637,61033.0,61032.0,2.14030261]
[1724395318538,0.0637,61033.0,61032.0,2.19009419]
[1724395318763,0.1401,61033.0,61032.0,0.76989219]
[1724395318984,0.1401,61033.0,61032.0,0.58860212]
[1724395319193,0.1401,61033.0,61032.0,0.22408266]
[1724395319400,0.1401,61033.0,61032.0,0.20792371]
[1724395319820,0.1401,61033.0,61032.0,0.22527599]
[1724395320021,0.1401,61033.0,61032.0,0.21127599]
[1724395320281,0.1401,61033.0,61032.0,0.22527599]
[1724395320853,0.1401,61033.0,61032.0,0.19727599]
[1724395321090,0.1401,61033.0,61032.0,0.21927599]
[1724395321441,0.1401,61033.0,61032.0,0.20527599]
[1724395321651,0.1401,61033.0,61032.0,0.21627599]
[1724395321852,0.1401,61033.0,61032.0,0.23927599]
[1724395325010,0.1401,61033.0,61032.0,0.23937962]
[1724395325278,0.1401,61033.0,61032.0,0.23927599]
[1724395329348,0.1401,61033.0,61032.0,0.40312399]
[1724395329573,0.1401,61033.0,61032.0,0.40322762]
[1724395329781,0.1401,61033.0,61032.0,0.40312399]
[1724395329983,0.140923,61033.0,61032.0,0.39027905]
[1724395330411,0.140923,61033.0,61032.0,0.39038268]
[1724395330611,0.140923,61033.0,61032.0,0.40394283]
[1724395334791,0.140923,61033.0,61032.0,0.40404646]
[1724395335231,0.140923,61033.0,61032.0,0.40394283]
[1724395335417,0.140923,61033.0,61032.0,0.40404646]
[1724395335818,0.140923,61033.0,61032.0,0.40394283]
[1724395337262,0.140923,61033.0,61032.0,0.73163883]
[1724395338040,0.140923,61033.0,61032.0,0.40394283]
[1724395340663,0.140923,61033.0,61032.0,0.40404646]
[1724395340875,0.140923,61033.0,61032.0,0.24009483]
[1724395341072,0.140923,61033.0,61032.0,0.40394283]
[1724395342427,0.140923,61033.0,61032.0,0.40484813]
[1724395344536,0.140923,61033.0,61032.0,0.24100013]
[1724395349061,0.140923,61033.0,61032.0,0.24210376]
[1724395349218,0.140923,61033.0,61032.0,0.40595176]
[1724395349413,0.140923,61033.0,61032.0,0.24210376]
[1724395350060,0.140923,61033.0,61032.0,0.24100013]
[1724395350262,0.140923,61033.0,61032.0,0.24110376]
[1724395351548,0.140923,61033.0,61032.0,0.24210376]
[1724395351969,0.140923,61033.0,61032.0,0.40595176]
[1724395353570,0.064523,61033.0,61032.0,1.06334376]
[1724395354903,0.064523,61033.0,61032.0,0.73564776]
[1724395355536,0.064523,61033.0,61032.0,0.7283864]
[1724395355988,0.064523,61033.0,61032.0,0.72628277]
[1724395356564,0.064523,61033.0,61032.0,0.7273864]
[1724395357177,0.064523,61033.0,61032.0,0.7283864]
[1724395358527,0.064523,61033.0,61032.0,0.72628277]
[1724395358943,0.140623,61033.0,61032.0,0.7273864]
[1724395359297,0.140623,61033.0,61032.0,0.3986904]
[1724395359901,0.140623,61033.0,61032.0,0.2348424]
[1724395361894,0.140623,61033.0,61032.0,0.3986904]
[1724395362070,0.146023,61033.0,61032.0,0.2348424]
[1724395363080,0.146023,61033.0,61032.0,0.3986904]
[1724395363323,0.146023,61033.0,61032.0,0.44763861]
[1724395363324,0.064523,61033.0,61032.0,0.44763861]
[1724395363462,0.064523,61033.0,61032.0,0.3986904]
[1724395363663,0.064523,61033.0,61032.0,0.2348424]
[1724395364474,0.143723,61033.0,61032.0,0.23373877]
[1724395372836,0.143723,61033.0,61032.0,0.2338424]
[1724395373040,0.143723,61033.0,61032.0,0.23373877]
[1724395376096,0.064523,61033.0,61032.0,0.3976904]
[1724395376299,0.064523,61033.0,61032.0,0.3986904]
[1724395376496,0.064523,61033.0,61032.0,0.28393309]
[1724395378714,0.064523,61033.0,61032.0,0.44778109]
[1724395378933,0.064523,61033.0,61032.0,0.4477791]
[1724395379627,0.064523,61033.0,61032.0,0.44667547]
[1724395381763,0.064523,61033.0,61032.0,0.4467791]
[1724395382290,0.064523,61033.0,61032.0,0.44677919]
[1724395382492,0.064523,61033.0,61032.0,0.44777919]
[1724395384454,0.064523,61033.0,61032.0,0.77547519]
[1724395384674,0.064523,61033.0,61032.0,1.09188595]
[1724395384877,0.064523,61033.0,61032.0,0.7283864]
[1724395385207,0.064523,61033.0,61032.0,0.80201413]
[1724395385431,0.064523,61033.0,61032.0,1.1276065]
[1724395385576,0.064523,61033.0,61032.0,1.12871013]
[1724395386611,0.064523,61033.0,61032.0,1.12971013]
[1724395386814,0.000823,61033.0,61032.0,1.28727209]
[1724395386978,0.000823,61033.0,61032.0,1.90482868]
[1724395389336,0.000823,61033.0,61032.0,2.00295223]
[1724395389810,0.000823,61033.0,61032.0,1.90482868]
[1724395391772,0.000823,61033.0,61032.0,1.54134036]
[1724395391955,0.000823,61033.0,61032.0,1.90479512]
[1724395393416,0.00015135,61033.0,61032.0,2.02737638]
[1724395394693,0.00015135,61033.0,61032.0,2.03965062]
[1724395397252,0.00015135,61033.0,61032.0,1.91706936]
[1724395397723,0.00015135,61033.0,61032.0,2.01510241]
[1724395399637,0.00015135,61033.0,61032.0,2.01510108]
[1724395400780,0.00015135,61033.0,61032.0,1.55361579]
[1724395402794,0.00015135,61033.0,61032.0,1.14951979]
[1724395403091,0.00015135,61033.0,61032.0,1.13724436]
[1724395403296,0.00015135,61033.0,61032.0,1.14951979]
[1724395403512,0.00015135,61033.0,61032.0,1.13724436]
[1724395403895,0.00015135,61033.0,61032.0,1.14951979]
[1724395404542,0.00015135,61033.0,61032.0,1.06877583]
[1724395404742,0.00015135,61033.0,61032.0,0.46239921]
[1724395404743,0.14385135,61033.0,61032.0,0.46239921]
[1724395404950,0.14385135,61033.0,61032.0,0.4011084]
[1724395405122,0.14385135,61033.0,61032.0,0.7283864]
[1724395405773,0.14385135,61033.0,61032.0,0.23373877]
[1724395407330,0.14385135,61033.0,61032.0,0.3976904]
[1724395408374,0.14385135,61033.0,61032.0,0.3986904]
[1724395409045,0.14385135,61033.0,61032.0,0.3991084]
[1724395409803,0.14385135,61033.0,61032.0,0.3986904]
[1724395411047,0.14385135,61033.0,61032.0,0.7263864]
[1724395413324,0.14385135,61033.0,61032.0,0.72528277]
[1724395414142,0.14385135,61033.0,61032.0,0.39758677]
[1724395414359,0.14385135,61033.0,61032.0,0.23373877]
[1724395414809,0.14385135,61033.0,61032.0,0.22189574]
[1724395415017,0.14385135,61033.0,61032.0,0.22199937]
[1724395415598,0.14385135,61033.0,61032.0,0.22299937]
[1724395416080,0.14385135,61033.0,61032.0,0.38684737]
[1724395416280,0.06075135,61033.0,61032.0,0.38684737]
[1724395418013,0.06075135,61033.0,61032.0,0.38726537]
[1724395418212,0.06075135,61033.0,61032.0,0.38684737]
[1724395420276,0.06075135,61033.0,61032.0,0.71454337]
[1724395420866,0.06075135,61033.0,61032.0,0.71343974]
[1724395421022,0.06075135,61033.0,61032.0,0.38574374]
[1724395421223,0.06075135,61033.0,61032.0,0.38684737]
[1724395421425,0.06075135,61033.0,61032.0,0.38574374]
[1724395421623,0.06075135,61033.0,61032.0,0.38584737]
[1724395421893,0.06075135,61033.0,61032.0,0.71354337]
[1724395422206,0.06075135,61033.0,61032.0,0.38574374]
[1724395422415,0.06075135,61033.0,61032.0,0.71343974]
[1724395423918,0.06075135,61033.0,61032.0,0.71443974]
[1724395426598,0.06075135,61033.0,61032.0,0.38674374]
[1724395427010,0.06075135,61033.0,61032.0,0.38574374]
[1724395428668,0.06075135,61033.0,61032.0,0.71496137]
[1724395428874,0.06075135,61033.0,61032.0,0.71454337]
[1724395429654,0.06075135,61033.0,61032.0,0.71496137]
[1724395429856,0.06075135,61033.0,61032.0,0.38684737]
[1724395430286,0.06075135,61033.0,61032.0,1.04223937]
[1724395430499,0.00015135,61033.0,61032.0,1.0549228]
[1724395430941,0.00015135,61033.0,61032.0,1.0569228]
[1724395431491,0.00015135,61033.0,61032.0,1.0565048]
[1724395433808,0.00015135,61033.0,61032.0,1.0555048]
[1724395434057,0.14055135,61033.0,61032.0,0.72570517]
[1724395434440,0.14055135,61033.0,61032.0,0.39800917]
[1724395439105,0.14055135,61033.0,61032.0,0.23416117]
[1724395439315,0.14055135,61033.0,61032.0,0.23416075]
[1724395440303,0.14055135,61033.0,61032.0,0.2831703]
[1724395440711,0.14055135,61033.0,61032.0,0.28317123]
[1724395441650,0.14055135,61033.0,61032.0,0.27090622]
[1724395442029,0.14055135,61033.0,61032.0,0.28317196]
[1724395443225,0.14055135,61033.0,61032.0,0.23416148]
[1724395443557,0.14055135,61033.0,61032.0,0.27092463]
[1724395444432,0.14055135,61033.0,61032.0,0.67749574]
[1724395446281,0.14055135,61033.0,61032.0,0.75104467]
[1724395447342,0.14055135,61033.0,61032.0,0.76331882]
[1724395447733,0.14055135,61033.0,61032.0,1.12680686]
[1724395448783,0.14055135,61033.0,61032.0,1.11453271]
[1724395448984,0.14055135,61033.0,61032.0,1.12681514]
[1724395449169,0.14055135,61033.0,61032.0,1.12692399]
[1724395451953,0.14055135,61033.0,61032.0,1.05326619]
[1724395452388,0.14055135,61033.0,61032.0,1.04098376]
[1724395452591,0.14055135,61033.0,61032.0,1.05326813]
[1724395453122,0.06255135,61033.0,61032.0,1.05326813]
[1724395454531,0.06255135,61033.0,61032.0,1.06441857]
[1724395454729,0.06255135,61033.0,61032.0,1.0645222]
[1724395454936,0.06255135,61033.0,61032.0,1.06441857]
[1724395455462,0.06255135,61033.0,61032.0,1.22826657]
[1724395455680,0.00015135,61033.0,61032.0,1.6542766]
[1724395455899,0.00015135,61033.0,61032.0,1.6788292]
[1724395456519,0.00015135,61033.0,61032.0,2.0065252]
[1724395456688,0.00015135,61033.0,61032.0,1.8837622]
[1724395456992,0.00015135,61033.0,61032.0,1.9616622]
[1724395457379,0.00015135,61033.0,61032.0,2.0844252]
[1724395457587,0.00015135,61033.0,61032.0,1.9616622]
[1724395458173,0.00015135,61033.0,61032.0,1.9626622]
[1724395458742,0.00015135,61033.0,61032.0,2.06087442]
[1724395460177,0.00015135,61033.0,61032.0,1.9626622]
[1724395460397,0.00015135,61033.0,61032.0,2.0854252]
[1724395460970,0.00015135,61033.0,61032.0,2.085423]
[1724395461387,0.00015135,61033.0,61032.0,1.96264781]
[1724395461591,0.00015135,61033.0,61032.0,2.085423]
[1724395464585,0.00015135,61033.0,61032.0,2.08431937]
[1724395464789,0.00015135,61033.0,61032.0,2.00641937]
[1724395464944,0.06255135,61033.0,61032.0,2.00641937]
[1724395465145,0.06255135,61033.0,61032.0,2.0064136]
[1724395465346,0.06255135,61033.0,61032.0,1.6541233]
[1724395465556,0.06255135,61033.0,61032.0,1.62958102]
[1724395465760,0.06255135,61033.0,61032.0,1.61730242]
[1724395467577,0.13885135,61033.0,61032.0,1.12575842]
[1724395468558,0.13885135,61033.0,61032.0,1.12577107]
[1724395472253,0.06255135,61033.0,61032.0,1.12577107]
[1724395473153,0.06255135,61033.0,61032.0,1.05213391]
[1724395473354,0.06255135,61033.0,61032.0,1.12577993]
[1724395477138,0.06255135,61033.0,61032.0,1.12588356]
[1724395477318,0.06255135,61033.0,61032.0,1.12577993]
[1724395477524,0.06255135,61033.0,61032.0,1.12578331]
[1724395478309,0.06255135,61033.0,61032.0,1.28963106]
[1724395479063,0.06255135,61033.0,61032.0,1.12578306]
[1724395479257,0.06255135,61033.0,61032.0,1.29073469]
[1724395480242,0.06255135,61033.0,61032.0,1.27173469]
[1724395480418,0.06255135,61033.0,61032.0,1.28273469]
[1724395480620,0.06255135,61033.0,61032.0,1.27973469]
[1724395480788,0.06255135,61033.0,61032.0,1.60743069]
[1724395480997,0.06255135,61033.0,61032.0,1.62143069]
[1724395482085,0.06255135,61033.0,61032.0,1.61343069]
[1724395482414,0.06255135,61033.0,61032.0,1.62543069]
[1724395484331,0.06255135,61033.0,61032.0,1.95312669]
[1724395485023,0.06255135,61033.0,61032.0,1.89065226]
[1724395485248,0.06255135,61033.0,61032.0,1.98885115]
[1724395485450,0.06255135,61033.0,61032.0,1.98882331]
[1724395485658,0.06255135,61033.0,61032.0,1.87847752]
[1724395485867,0.06255135,61033.0,61032.0,1.98882294]
[1724395486429,0.06255135,61033.0,61032.0,1.89065189]
[1724395486726,0.06255135,61033.0,61032.0,1.98882294]
[1724395487113,0.06255135,61033.0,61032.0,1.98892657]
[1724395487328,0.00015135,61033.0,61032.0,1.98882294]
[1724395487675,0.00015135,61033.0,61032.0,1.98992657]
[1724395488322,0.00015135,61033.0,61032.0,2.04532657]
[1724395488543,0.00015135,61033.0,61032.0,2.04704857]
[1724395488785,0.00015135,61033.0,61032.0,2.07332802]
[1724395490005,0.00015135,61033.0,61032.0,1.97715697]
[1724395490208,0.00015135,61033.0,61032.0,2.0753424]
[1724395490633,0.00015135,61033.0,61032.0,2.07323877]
[1724395490783,0.00015135,61033.0,61032.0,2.05923877]
[1724395491194,0.00015135,61033.0,61032.0,2.0743424]
[1724395491395,0.00015135,61033.0,61032.0,2.0603424]
[1724395491594,0.00015135,61033.0,61032.0,2.04806295]
[1724395491819,0.00015135,61033.0,61032.0,2.07323881]
[1724395492737,0.00015135,61033.0,61032.0,2.07433128]
[1724395493014,0.00015135,61033.0,61032.0,1.97614644]
[1724395493983,0.00015135,61033.0,61032.0,1.97714644]
[1724395495000,0.00015135,61033.0,61032.0,1.97714633]
[1724395496639,0.00015135,61033.0,61032.0,1.9750427]
[1724395497406,0.00015135,61033.0,61032.0,1.96441616]
[1724395497604,0.00015135,61033.0,61032.0,1.97633248]
[1724395497839,0.00015135,61033.0,61032.0,1.97522885]
[1724395498841,0.06305135,61033.0,61032.0,1.89382885]
[1724395499087,0.06305135,61033.0,61032.0,1.88963829]
[1724395501035,0.06305135,61033.0,61032.0,1.8773595]
[1724395501253,0.00015135,61033.0,61032.0,2.53601254]
[1724395501473,0.00015135,61033.0,61032.0,2.41257584]
[1724395501680,0.00015135,61033.0,61032.0,2.53667881]
[1724395501887,0.00015135,61033.0,61032.0,2.52545791]
[1724395502074,0.00015135,61033.0,61032.0,2.51145791]
[1724395502310,0.00015135,61033.0,61032.0,2.51132766]
[1724395502496,0.00015135,61033.0,61032.0,2.40264269]
[1724395502699,0.00015135,61033.0,61032.0,2.52532766]
[1724395503108,0.00015135,61033.0,61032.0,2.38864269]
[1724395503483,0.00015135,61033.0,61032.0,2.40264269]
[1724395503687,0.00015135,61033.0,61032.0,2.30789873]
[1724395503893,0.00015135,61033.0,61032.0,2.50078518]
[1724395504095,0.00015135,61033.0,61032.0,2.40264269]
[1724395504295,0.00015135,61033.0,61032.0,2.48678814]